bitfinex-derivatives/quotes_ETHF0:USTF0_20251021
["timestamp","ask_amount","ask_price","bid_price","bid_amount"]
[1761023772594,0.58171737,3860.0,3859.6,0.7668]
[1761023772895,0.58171737,3860.0,3859.1,5.383]
[1761023772896,0.4507,3860.1,3860.0,0.5503]
[1761023773196,0.46625,3859.6,3859.5,0.5705]
[1761023773396,0.917,3859.2,3859.1,0.5503]
[1761023773602,0.46636,3858.8,3858.7,0.3339]
[1761023773791,0.46636,3858.8,3858.7,0.00225507]
[1761023773991,0.46636,3858.8,3858.7,0.33615507]
[1761023774704,0.46633,3859.0,3858.7,0.33615507]
[1761023775910,0.46635,3858.9,3858.7,0.33615507]
[1761023776096,0.3432,3858.8,3858.7,0.33615507]
[1761023776295,0.3432,3858.8,3858.7,0.00225507]
[1761023776695,0.3432,3858.8,3858.7,0.33905507]
[1761023777395,0.3432,3858.8,3858.7,0.00225507]
[1761023777605,0.3432,3858.8,3858.7,0.33905507]
[1761023778604,0.46634,3858.9,3858.7,0.33905507]
[1761023778903,0.81054,3858.9,3858.7,0.33905507]
[1761023779203,0.46652,3857.4,3857.3,0.3368]
[1761023780195,0.46652,3857.4,3857.3,0.33987193]
[1761023780196,0.81072,3857.4,3857.3,0.33987193]
[1761023780395,0.46652,3857.4,3857.3,0.33987193]
[1761023780995,0.4665,3857.7,3857.3,0.33987193]
[1761023781203,0.81068,3857.8,3857.5,0.3368]
[1761023781391,0.46649,3857.7,3857.5,0.3368]
[1761023781592,0.4665,3857.6,3857.5,0.3368]
[1761023782000,49.5284989,3859.3,3857.5,0.3368]
[1761023782001,1.16586,3859.0,3857.6,0.3368]
[1761023782194,0.4664,3858.4,3858.1,0.3368]
[1761023782396,0.46642,3858.3,3858.1,0.3368]
[1761023782700,0.81062,3858.3,3858.1,0.3368]
[1761023782900,0.46642,3858.3,3858.1,0.3368]
[1761023783696,0.46642,3858.3,3858.2,0.3368]
[1761023784501,0.46638,3858.6,3858.2,0.3368]
[1761023784706,0.4664,3858.4,3858.2,0.3368]
[1761023785797,0.3442,3859.3,3858.3,0.3368]
[1761023785998,0.46636,3858.8,3858.6,0.3368]
[1761023786298,0.46636,3858.8,3858.6,0.46638]
[1761023786496,0.3442,3859.3,3858.8,0.3368]
[1761023786696,0.46635,3858.9,3858.8,0.3368]
[1761023787597,0.81055,3858.9,3858.8,0.3368]
[1761023788305,0.46635,3858.9,3858.8,0.3368]
[1761023788801,0.3279,3859.3,3859.1,0.3426]
[1761023788996,0.3279,3859.3,3859.0,0.59403]
[1761023788997,0.3279,3859.5,3859.2,0.3426]
[1761023789197,0.46627,3859.5,3859.3,0.3426]
[1761023789394,0.79417,3859.5,3859.3,0.3426]
[1761023789595,0.3279,3859.4,3859.3,0.3426]
[1761023789799,0.3279,3859.4,3858.7,0.46636]
[1761023790201,0.46634,3859.0,3858.8,0.3426]
[1761023790504,0.46634,3859.0,3858.9,0.3426]
[1761023792403,0.46634,3859.0,3858.5,0.1261]
[1761023792404,0.7942,3859.3,3859.1,0.3426]
[1761023792610,0.4663,3859.3,3859.1,0.3426]
[1761023792906,0.4663,3859.3,3859.2,0.7986]
[1761023792907,1.0127,3859.3,3859.2,0.7986]
[1761023793604,0.6848,3859.3,3859.2,0.7986]
[1761023794500,1.2224,3859.3,3859.2,0.7986]
[1761023794807,1.22244,3858.9,3858.8,1.4936556]
[1761023795008,1.22244,3858.9,3858.8,0.7986]
[1761023795201,0.46637,3858.7,3858.6,0.6950556]
[1761023795408,1.2225,3858.4,3858.3,0.2322]
[1761023795605,0.5464,3858.9,3858.4,0.3426]
[1761023795801,1.01278,3858.6,3858.5,0.5748]
[1761023796110,1.16586,3858.9,3858.3,1.4936556]
[1761023796111,1.2225,3858.4,3858.3,1.4936556]
[1761023796410,0.46639,3858.6,3858.5,0.7986]
[1761023796797,9.415,3860.4,3859.5,0.93657]
[1761023797005,0.22709207,3860.1,3860.0,0.4703]
[1761023797204,1.38516671,3860.6,3860.0,0.4703]
[1761023797205,0.3279,3860.4,3860.0,0.1277]
[1761023797415,0.3279,3860.4,3860.1,0.46619]
[1761023797707,0.3279,3860.0,3859.9,0.5420345]
[1761023797911,0.33082861,3860.0,3859.9,0.34501342]
[1761023798108,0.00292861,3860.0,3859.9,0.54488694]
[1761023798410,0.33082861,3860.0,3859.9,0.34501342]
[1761023799005,0.00292861,3860.0,3859.9,0.34501342]
[1761023800905,0.33082861,3860.0,3859.9,0.34501342]
[1761023802004,0.00292861,3860.0,3859.9,0.34501342]
[1761023802907,0.22142861,3860.0,3859.9,0.80101342]
[1761023805917,0.3279,3861.5,3861.2,0.3426]
[1761023806212,0.00267832,3861.6,3861.5,0.93633]
[1761023806414,0.00267832,3861.6,3861.5,0.4703]
[1761023806615,0.3279,3862.4,3861.6,0.3426]
[1761023806815,0.79382,3862.4,3861.8,0.46598]
[1761023807011,0.3279,3862.3,3862.0,0.46597]
[1761023807217,0.3279,3862.3,3862.2,0.3426]
[1761023807413,0.022,3862.8,3862.4,0.80851]
[1761023807414,0.3499,3862.8,3862.4,0.80851]
[1761023807715,0.02401144,3862.8,3862.6,0.3426]
[1761023807907,0.35191144,3862.8,3862.6,0.3426]
[1761023808106,0.02401144,3862.8,3862.6,0.80849]
[1761023808424,0.02401144,3862.8,3862.7,0.3426]
[1761023808708,0.02401144,3862.8,3862.7,0.3450168]
[1761023808910,0.48801144,3862.8,3862.7,0.0024168]
[1761023809306,0.35191144,3862.8,3862.7,0.3450168]
[1761023809515,0.48801144,3862.8,3862.7,0.0024168]
[1761023809702,0.35191144,3862.8,3862.7,0.3450168]
[1761023809906,0.02401144,3862.8,3862.7,0.3450168]
[1761023810817,0.35191144,3862.8,3862.7,0.3450168]
[1761023811013,0.02401144,3862.8,3862.7,0.3450168]
[1761023811211,0.35191144,3862.8,3862.7,0.0024168]
[1761023811813,0.35191144,3862.8,3862.7,0.3450168]
[1761023813715,0.02401144,3862.8,3862.7,0.3450168]
[1761023814506,0.35191144,3862.8,3862.7,0.0024168]
[1761023815310,0.78011144,3862.8,3862.7,0.2346168]
[1761023815518,0.78011144,3862.8,3862.7,0.8010168]
[1761023815519,0.24251144,3862.8,3862.7,0.8010168]
[1761023815710,0.57041144,3862.8,3862.7,0.8010168]
[1761023815914,0.02401144,3862.8,3862.7,0.8010168]
[1761023818318,0.80021144,3862.8,3862.7,0.2346168]
[1761023818520,0.02401144,3862.8,3862.7,0.8055168]
[1761023818921,0.80021144,3862.8,3862.7,0.8055168]
[1761023819620,0.46131144,3862.8,3862.7,0.8055168]
[1761023820215,0.80021144,3862.8,3862.7,0.8055168]
[1761023821023,0.80021144,3862.8,3862.7,0.2346168]
[1761023821322,0.80021144,3862.8,3862.7,0.8055168]
[1761023822521,0.23501144,3862.8,3862.7,0.8055168]
[1761023822723,0.02401144,3862.8,3862.7,0.8055168]
[1761023823536,0.02401144,3862.8,3862.7,5.8055168]
[1761023824023,1.24193,3864.0,3863.9,0.7896]
[1761023824222,0.46573,3864.0,3863.9,0.7896]
[1761023824420,1.0156,3864.2,3864.1,0.7896]
[1761023824616,1.2419,3864.2,3864.1,0.7896]
[1761023824815,0.46574,3863.9,3863.8,0.566]
[1761023825019,0.46583,3863.2,3863.1,0.4423]
[1761023825213,0.4373,3862.8,3862.7,0.4447168]
[1761023825423,0.5499,3863.1,3863.0,0.4423]
[1761023825623,0.7762,3862.8,3862.7,0.5684168]
[1761023825823,0.7762,3862.8,3862.7,0.7920168]
[1761023826028,0.7762,3862.8,3862.7,0.0024168]
[1761023826327,0.7762,3862.8,3862.7,0.2211168]
[1761023826723,0.7762,3862.8,3862.7,0.5684168]
[1761023826927,0.80473,3863.2,3863.1,0.7896]
[1761023827122,0.46583,3863.2,3863.1,0.7896]
[1761023827826,0.46581,3863.4,3863.3,0.7896]
[1761023828427,0.67681,3863.4,3863.3,0.7896]
[1761023828623,1.24201,3863.4,3863.3,0.7896]
[1761023829426,1.01574,3863.1,3863.0,0.7896]
[1761023829822,1.24204,3863.1,3863.0,0.4423]
[1761023830129,1.24204,3863.1,3863.0,0.2187]
[1761023830530,1.24204,3863.1,3863.0,0.566]
[1761023831731,1.24204,3863.1,3863.0,0.2187]
[1761023831934,1.24206,3862.9,3862.8,9.997]
[1761023832129,1.24206,3862.9,3862.8,0.566]
[1761023832637,0.7762,3862.8,3862.7,0.0024168]
[1761023833128,5.7762,3862.8,3862.7,0.0024168]
[1761023833530,5.7762,3862.8,3861.9,0.92951707]
[1761023833531,1.38007,3862.0,3861.9,0.69083556]
[1761023833731,0.90332,3861.6,3861.4,0.3473]
[1761023834031,0.7762,3861.2,3861.1,0.99343413]
[1761023834242,0.46606,3861.3,3861.1,1.33696969]
[1761023834427,0.46606,3861.3,3861.2,0.7896]
[1761023834628,1.24471614,3861.3,3861.2,0.79183052]
[1761023834939,1.24471614,3861.3,3861.2,0.00223052]
[1761023835127,0.80741614,3861.3,3861.2,0.00223052]
[1761023837236,0.80741614,3861.3,3861.2,0.90463052]
[1761023837927,1.25641614,3861.3,3861.2,0.90463052]
[1761023838126,0.00245614,3861.3,3861.2,1.69303052]
[1761023838324,0.46594,3862.2,3861.8,0.3468]
[1761023838638,0.46594,3862.3,3862.1,0.3468]
[1761023839343,0.46814576,3862.3,3862.1,0.3468]
[1761023840145,0.00220576,3862.3,3862.1,0.3468]
[1761023840527,0.46814576,3862.3,3862.1,0.69558301]
[1761023840733,0.60012,3861.6,3861.4,0.69558301]
[1761023840938,0.325,3861.5,3861.4,0.3468]
[1761023841138,0.46602,3861.6,3861.4,0.3468]
[1761023841944,0.79102,3861.6,3861.4,0.3468]
[1761023842143,0.325,3861.5,3861.4,0.3468]
[1761023842344,1.16496,3862.0,3861.2,1.94701353]
[1761023842345,0.325,3861.3,3861.2,1.94701353]
[1761023842640,0.325,3861.3,3861.2,0.90463052]
[1761023847827,0.325,3861.3,3861.2,1.24853052]
[1761023848031,0.3388,3861.5,3861.3,0.3439]
[1761023848345,0.3388,3861.3,3861.2,0.90463052]
[1761023850040,5.3388,3861.3,3861.2,0.90463052]
[1761023850742,0.1332,3861.0,3860.2,0.3439]
[1761023850944,0.46617,3860.3,3860.2,0.3439]
[1761023851146,0.46616,3860.4,3860.3,0.3439]
[1761023851736,0.46616,3860.4,3860.3,0.5524725]
[1761023852041,0.80496,3860.4,3860.3,0.5524725]
[1761023852339,0.46615,3860.6,3860.4,0.46616]
[1761023852539,0.46615,3860.6,3860.5,0.3439]
[1761023853037,0.69345,3860.6,3860.5,0.7851]
[1761023853244,1.03225,3860.6,3860.5,0.7851]
[1761023853844,0.46615,3860.6,3860.5,0.9175]
[1761023854045,1.03225,3860.6,3860.5,0.7851]
[1761023854638,1.25365,3860.6,3860.5,0.7851]
[1761023855039,0.69346,3860.4,3860.3,0.2085725]
[1761023855238,1.25366,3860.4,3860.3,0.4268725]
[1761023855440,1.25366,3860.4,3860.3,0.7707725]
[1761023855746,1.25366,3860.4,3860.3,0.22149078]
[1761023855947,1.25366,3860.4,3860.3,0.56539078]
[1761023856943,1.25366,3860.4,3860.3,1.57589078]
[1761023857340,1.25366,3860.4,3860.3,1.23199078]
[1761023857642,1.25366,3860.4,3860.3,1.01369078]
[1761023859446,1.25366,3860.4,3860.3,1.23199078]
[1761023859933,1.25366,3860.4,3860.3,1.79879078]
[1761023860138,0.1341,3861.6,3861.1,0.3439]
[1761023860348,2.2222683,3862.0,3861.6,0.5668]
[1761023860349,0.46601,3861.7,3861.6,0.5668]
[1761023860557,0.46601,3861.7,3861.6,0.7851]
[1761023860558,0.69331,3861.7,3861.6,0.7851]
[1761023860739,1.25351,3861.7,3861.6,0.7851]
[1761023860939,1.03214,3861.4,3861.3,0.5622]
[1761023861136,0.1332,3862.0,3861.0,0.2183]
[1761023861137,0.3388,3861.1,3861.0,0.2183]
[1761023861348,1.16496,3861.9,3861.1,0.3439]
[1761023861349,0.46605,3861.4,3861.1,0.3439]
[1761023861644,1.03215,3861.4,3861.3,0.7851]
[1761023861845,0.3388,3861.8,3861.4,0.3439]
[1761023862046,1.03209,3861.8,3861.7,0.7851]
[1761023862639,1.25349,3861.8,3861.7,0.7851]
[1761023862840,0.7875,3862.0,3861.9,0.4412]
[1761023863056,0.9207,3862.0,3861.9,0.4412]
[1761023863243,0.7875,3862.0,3861.9,0.7851]
[1761023864244,0.5661,3862.0,3861.9,0.7851]
[1761023864550,0.7875,3862.0,3861.9,0.7851]
[1761023864847,1.25563576,3862.3,3862.2,0.2183]
[1761023865041,1.25563576,3862.3,3862.2,0.5622]
[1761023865437,1.25563576,3862.3,3862.2,0.98535053]
[1761023865750,0.46813576,3862.3,3862.2,0.7851]
[1761023866049,1.03423576,3862.3,3862.2,0.7851]
[1761023866249,1.25563576,3862.3,3862.2,0.7851]
[1761023866942,1.25563576,3862.3,3862.2,0.98868737]
[1761023866943,0.22950576,3862.3,3862.2,0.98868737]
[1761023867448,0.5661,3861.9,3861.8,0.7851]
[1761023867843,0.34100576,3862.3,3861.8,0.98400373]
[1761023868049,0.5661,3862.1,3862.0,0.7851]
[1761023868345,0.2273,3861.8,3861.7,1.25706814]
[1761023868546,0.7875,3861.7,3861.6,1.25706814]
[1761023868746,0.7875,3861.7,3861.6,0.5622]
[1761023868950,1.25349,3861.8,3861.7,0.3439]
[1761023869151,0.7875,3861.7,3861.6,0.76395814]
[1761023869350,0.7875,3861.7,3861.6,0.7851]
[1761023870046,0.7875,3861.7,3861.6,0.98688314]
[1761023871339,0.46599,3861.8,3861.7,0.7851]
[1761023871340,0.4487,3861.8,3861.7,0.7851]
[1761023871642,1.25346,3862.1,3862.0,0.5622]
[1761023872948,1.25346,3862.1,3862.0,0.2183]
[1761023873252,0.69331,3861.7,3861.6,0.98195964]
[1761023873852,0.46601,3861.7,3861.6,0.98195964]
[1761023874055,1.03211,3861.7,3861.6,0.98195964]
[1761023874650,0.69331,3861.7,3861.6,0.98195964]
[1761023874853,1.25351,3861.7,3861.6,0.98195964]
[1761023875053,0.91471,3861.7,3861.6,0.98195964]
[1761023875254,1.25351,3861.7,3861.6,0.19685964]
[1761023875443,0.3388,3861.6,3861.5,1.72309814]
[1761023875750,0.7875,3861.6,3861.5,1.94599814]
[1761023876353,0.7875,3861.6,3861.5,1.67993671]
[1761023877048,0.7875,3861.6,3861.5,0.54386857]
[1761023877256,0.7875,3861.3,3861.2,0.2183]
[1761023877455,0.7875,3861.3,3861.2,0.5622]
[1761023878455,0.7875,3861.3,3861.2,0.76783703]
[1761023879154,0.7875,3861.3,3861.2,0.5622]
[1761023879458,0.7875,3861.3,3861.0,0.82726814]
[1761023879459,0.7628,3861.1,3861.0,1.37675814]
[1761023879749,0.7628,3861.1,3861.0,1.92825814]
[1761023880343,1.00337,3861.2,3861.1,0.3351]
[1761023880550,1.22887,3861.2,3861.1,0.7673]
[1761023880747,1.22887,3861.2,3861.1,1.23338]
[1761023881751,0.7628,3861.2,3861.1,1.23338]
[1761023881952,1.22887,3861.2,3861.1,1.23338]
[1761023882552,0.3261,3862.2,3861.8,0.89819]
[1761023882744,0.3261,3862.2,3861.5,0.1359]
[1761023882745,1.22874,3862.2,3862.1,0.7673]
[1761023883262,0.00220576,3862.3,3862.1,0.89815]
[1761023883456,0.00220576,3862.3,3862.2,0.7673]
[1761023883764,0.00220576,3862.3,3862.2,1.46216814]
[1761023883952,0.3261,3863.2,3862.2,1.46216814]
[1761023884154,0.3261,3863.9,3863.5,0.3351]
[1761023884357,1.22858,3863.6,3863.5,0.5509]
[1761023884757,0.2112,3863.6,3863.5,0.7673]
[1761023884951,1.00304,3863.9,3863.8,0.2158]
[1761023885155,1.22858,3863.6,3863.5,0.00248125]
[1761023885853,0.21415939,3863.9,3863.8,0.4322]
[1761023886062,0.21415939,3863.9,3863.8,0.7673]
[1761023886564,0.00295939,3863.9,3863.8,0.7673]
[1761023887452,0.32905939,3863.9,3863.8,0.3351]
[1761023887763,0.3261,3863.6,3863.5,0.00248125]
[1761023888152,0.46577,3863.7,3863.5,0.33758125]
[1761023888455,0.00295939,3863.9,3863.6,0.3351]
[1761023888763,0.32905939,3863.9,3863.8,0.3351]
[1761023888959,0.3261,3863.6,3863.5,0.00248125]
[1761023889658,0.3261,3863.6,3863.5,0.33758125]
[1761023889858,0.3261,3863.6,3863.5,0.00248125]
[1761023890365,0.7628,3863.6,3863.5,0.00248125]
[1761023891658,0.7628,3863.6,3863.5,0.21828125]
[1761023891858,0.7628,3863.6,3863.5,0.76978125]
[1761023892164,0.2112,3863.6,3863.5,0.76978125]
[1761023892362,0.46869939,3863.9,3863.7,0.3351]
[1761023893069,0.32905939,3863.9,3863.8,0.3351]
[1761023893259,0.00295939,3863.9,3863.7,0.46576]
[1761023893464,0.00295939,3863.9,3863.8,0.3351]
[1761023894469,0.00295939,3863.9,3863.8,0.9908]
[1761023896160,0.4656,3865.1,3864.7,0.80074]
[1761023896365,0.3332,3865.4,3864.8,0.3351]
[1761023896568,0.3332,3865.0,3864.9,0.3409]
[1761023896955,0.3332,3864.9,3864.6,0.3409]
[1761023897161,0.80081751,3864.9,3864.6,0.46564]
[1761023897364,0.46761751,3864.9,3864.7,0.3409]
[1761023897564,0.3332,3864.8,3864.7,0.3409]
[1761023898569,0.79884,3864.7,3864.6,0.3146]
[1761023898776,0.46564,3864.7,3864.6,0.6555]
[1761023898977,0.79884,3864.7,3864.6,0.6555]
[1761023899175,0.46564,3864.7,3864.6,0.6555]
[1761023899582,0.79884,3864.7,3864.6,0.6555]
[1761023899876,0.46564,3864.7,3864.6,0.6555]
[1761023900276,0.46762751,3864.9,3864.8,0.4474]
[1761023900468,0.00199751,3864.9,3864.8,0.7883]
[1761023901779,0.76429751,3864.9,3864.8,0.7883]
[1761023902982,0.00199751,3864.9,3864.8,0.7883]
[1761023903167,0.76429751,3864.9,3864.8,0.7883]
[1761023903584,0.00199751,3864.9,3864.8,0.7883]
[1761023903878,0.00199751,3864.9,3864.8,5.7883]
[1761023904171,0.1315,3866.0,3865.8,0.7883]
[1761023904172,1.0089,3865.9,3865.8,0.7883]
[1761023904386,0.89468,3865.3,3865.2,0.5566]
[1761023904875,0.3332,3866.2,3865.4,0.3409]
[1761023905075,0.79869,3866.0,3865.9,0.7883]
[1761023905377,0.46549,3866.0,3865.9,0.7883]
[1761023905768,0.46552,3865.8,3865.5,0.46554]
[1761023905965,0.67572,3865.8,3865.7,0.7883]
[1761023906164,0.00191977,3866.2,3865.0,0.1368]
[1761023906165,0.3332,3866.1,3866.0,0.2317]
[1761023906366,1.00887,3866.1,3866.0,0.99276549]
[1761023906572,1.00887,3866.1,3866.0,0.7883]
[1761023906776,0.2102,3865.8,3865.5,0.4474]
[1761023906982,0.67573,3865.7,3865.5,0.5842]
[1761023907273,0.2102,3865.7,3865.6,0.7883]
[1761023907576,1.23909,3866.0,3865.9,0.7983]
[1761023907783,1.23909,3866.0,3865.9,0.2321]
[1761023907980,0.2228,3865.6,3865.5,0.927]
[1761023908172,0.2228,3865.6,3865.5,1.1242115]
[1761023908873,0.7941,3865.6,3865.5,0.9955115]
[1761023909069,0.46551,3865.8,3865.7,0.7983]
[1761023909270,0.4655,3866.0,3865.9,0.7983]
[1761023909469,0.00191977,3866.2,3866.0,0.4686]
[1761023909470,0.22471977,3866.2,3866.0,0.4686]
[1761023909669,0.69017977,3866.2,3866.1,0.7983]
[1761023910067,1.03127977,3866.2,3866.1,0.7983]
[1761023910268,1.02938,3866.1,3866.0,0.7983]
[1761023910784,0.68828,3866.1,3866.0,0.927]
[1761023910974,0.2228,3866.1,3866.0,0.927]
[1761023911178,0.7941,3866.1,3866.0,0.2321]
[1761023911483,0.5639,3865.9,3865.8,0.4584]
[1761023911783,0.2228,3865.9,3865.8,0.7983]
[1761023911984,1.25966,3865.4,3865.3,0.2321]
[1761023912274,1.25968,3865.2,3865.1,0.20345519]
[1761023912476,0.453,3864.8,3864.7,0.572]
[1761023912673,0.453,3864.8,3864.7,0.7983]
[1761023912981,0.7941,3864.8,3864.7,0.7983]
[1761023913174,0.453,3864.8,3864.7,0.7983]
[1761023913377,0.453,3864.8,3864.7,0.99863155]
[1761023913780,0.7941,3864.8,3864.7,0.99863155]
[1761023914281,0.46557,3865.3,3865.2,0.3399]
[1761023914588,0.3411,3865.8,3865.2,0.46558]
[1761023914781,0.3411,3865.8,3865.3,0.3399]
[1761023915085,0.34301977,3866.2,3865.9,0.4655]
[1761023915383,0.46548,3866.1,3865.6,0.3399]
[1761023915584,0.3411,3866.1,3865.3,0.3399]
[1761023915778,0.3411,3865.9,3865.3,0.3399]
[1761023916181,0.8066,3865.9,3865.3,0.3399]
[1761023916384,0.3411,3865.8,3865.5,0.3399]
[1761023916576,0.3411,3865.8,3865.6,0.3399]
[1761023916774,0.3411,3865.8,3865.0,1.05614402]
[1761023916775,0.46558,3865.3,3865.1,0.69486814]
[1761023917091,0.1377,3865.8,3864.7,0.3399]
[1761023917092,0.3411,3864.9,3864.7,0.3399]
[1761023917384,0.3411,3865.6,3864.9,0.3399]
[1761023917582,0.3411,3865.6,3864.8,0.46562]
[1761023917583,0.3411,3865.5,3864.6,0.90895]
[1761023917879,0.46563,3864.9,3864.7,0.3399]
[1761023918075,0.80673,3864.9,3864.7,0.3399]
[1761023918775,0.3411,3865.0,3864.7,0.3399]
[1761023919479,0.3411,3865.0,3864.6,1.10756361]
[1761023919480,0.46563,3864.8,3864.6,0.3146]
[1761023919687,0.3411,3864.7,3864.6,0.3146]
[1761023920486,0.80684,3863.9,3863.8,0.9956]
[1761023920785,0.3411,3863.9,3863.8,0.9956]
[1761023922979,0.3411,3864.5,3863.8,0.9956]
[1761023923170,0.3411,3864.5,3864.1,0.3399]
[1761023923376,0.46568,3864.5,3864.2,0.3399]
[1761023923786,0.80678,3864.5,3864.2,0.3399]
[1761023923982,0.3411,3864.5,3864.2,0.3399]
[1761023924281,50.4297,3865.2,3864.3,0.3399]
[1761023924282,0.3411,3864.6,3864.3,0.3399]
[1761023924879,0.80678,3864.5,3864.3,0.3399]
[1761023925487,0.46568,3864.5,3864.3,0.3399]
[1761023926083,0.3411,3864.4,3864.3,0.3399]
[1761023926279,0.3411,3865.1,3864.4,0.3399]
[1761023926482,0.46563,3864.9,3864.7,0.3399]
[1761023927183,0.80672,3864.9,3864.5,0.3399]
[1761023927486,0.80672,3864.9,3864.7,0.3399]
[1761023927687,0.3411,3864.8,3864.7,0.3399]
[1761023927873,0.3411,3864.6,3864.5,0.3399]
[1761023928181,0.46564,3864.7,3864.5,0.3399]
[1761023928487,0.46564,3864.7,3864.5,0.1287]
[1761023928685,0.80678,3864.4,3864.3,0.69486814]
[1761023928984,0.3411,3864.7,3864.4,0.3399]
[1761023929286,0.80675,3864.7,3864.5,0.3399]
[1761023929879,0.3411,3864.6,3864.5,0.3399]
[1761023930288,9.43645,3865.2,3864.5,0.3399]
[1761023930477,9.43645,3865.2,3864.6,0.3399]
[1761023930673,0.46564,3864.8,3864.6,0.3399]
[1761023931278,9.29875,3865.2,3864.0,1.52159671]
[1761023931279,0.46567,3864.5,3864.3,0.69486814]
[1761023931486,1.16403,3865.0,3864.3,0.69486814]
[1761023931487,0.46565,3864.7,3864.6,0.3399]
[1761023932091,0.46567,3864.5,3864.4,0.3399]
[1761023932487,0.46567,3864.5,3864.4,1.03476814]
[1761023932886,0.46567,3864.5,3864.4,1.49316814]
[1761023933294,1.25977,3864.5,3864.4,0.572]
[1761023933496,0.91867,3864.5,3864.4,0.572]
[1761023933794,0.91867,3864.5,3864.4,0.7983]
[1761023935394,0.91867,3864.5,3864.4,0.572]
[1761023935589,0.91867,3864.5,3864.4,0.7983]
[1761023936292,0.453,3864.5,3864.4,0.7983]
[1761023938097,0.2228,3864.5,3864.4,0.7983]
[1761023938297,0.2125,3864.9,3864.8,0.7751]
[1761023938589,0.67812,3864.9,3864.8,0.7751]
[1761023939290,0.46562,3864.9,3864.8,1.625]
[1761023939590,0.67812,3864.9,3864.8,1.625]
[1761023939795,0.89672,3864.9,3864.8,1.625]
[1761023940292,0.8967,3865.1,3865.0,0.9102]
[1761023940488,1.2229,3865.1,3865.0,0.6782]
[1761023940796,1.22292,3864.9,3864.8,1.177]
[1761023940996,1.22292,3864.9,3864.8,0.8499]
[1761023941183,1.22292,3864.9,3864.8,1.393]
[1761023941692,1.22292,3864.9,3864.8,0.8499]
[1761023942395,1.44776999,3864.9,3864.8,0.8499]
[1761023942590,0.3262,3864.2,3864.1,0.69497884]
[1761023942787,0.3262,3864.2,3863.9,0.92744402]
[1761023942788,1.22302,3864.1,3863.9,0.69497884]
[1761023942998,1.22308,3863.6,3863.5,0.00248125]
[1761023943387,0.46578,3863.6,3863.5,0.77758125]
[1761023943589,0.67823,3864.0,3863.9,0.3271]
[1761023943792,0.89683,3864.0,3863.9,0.7751]
[1761023944199,1.22303,3864.0,3863.9,0.5431]
[1761023944397,1.22303,3864.0,3863.9,0.3271]
[1761023944895,0.89683,3864.0,3863.9,0.5431]
[1761023945384,0.89683,3864.0,3863.9,0.7751]
[1761023945990,0.2125,3864.8,3864.4,0.3271]
[1761023946197,1.2503183,3865.5,3864.5,0.1351]
[1761023946398,0.46562,3864.9,3864.7,0.69497884]
[1761023946591,0.46562,3864.9,3864.8,0.3271]
[1761023946797,0.46561,3865.1,3864.8,0.3271]
[1761023946990,1.2503183,3865.8,3865.1,0.79269]
[1761023947204,0.22488316,3865.7,3865.2,0.3271]
[1761023948505,0.3262,3865.3,3865.2,0.3271]
[1761023949104,0.46556,3865.4,3865.2,0.3271]
[1761023949495,9.469,3865.9,3865.8,0.1351]
[1761023949802,0.46546,3866.3,3865.9,0.3271]
[1761023950002,0.3262,3866.5,3865.9,0.3271]
[1761023950197,0.79168,3866.1,3865.9,0.3271]
[1761023950396,0.3262,3866.1,3865.9,0.3271]
[1761023950599,0.46548,3866.1,3865.9,0.3271]
[1761023950801,0.3262,3866.0,3865.9,0.3271]
[1761023951199,0.46548,3866.1,3865.9,0.3271]
[1761023952497,0.3262,3866.1,3865.6,0.3271]
[1761023953003,0.67803,3865.7,3865.6,0.7751]
[1761023953505,0.89663,3865.7,3865.6,0.7751]
[1761023953700,0.7918,3865.1,3865.0,0.3271]
[1761023954005,0.4656,3865.1,3865.0,0.4622]
[1761023954404,0.4656,3865.1,3865.0,0.3271]
[1761023954405,0.7918,3865.1,3865.0,0.3271]
[1761023954707,0.4656,3865.1,3865.0,0.3271]
[1761023955204,0.46562,3864.9,3864.8,0.3271]
[1761023956499,0.3902,3865.5,3864.8,0.3271]
[1761023956705,0.3214,3865.3,3864.8,0.3271]
[1761023956907,0.46558,3865.3,3864.8,0.3271]
[1761023957207,0.78699,3865.2,3864.8,0.3271]
[1761023957512,0.46561,3865.0,3864.8,0.3271]
[1761023957902,0.67981,3865.0,3864.9,0.5477]
[1761023958796,1.22671,3865.0,3864.9,0.5477]
[1761023959407,0.4397,3864.6,3864.5,0.2105]
[1761023959993,0.4397,3864.6,3864.5,0.5477]
[1761023960499,0.90536,3864.6,3864.5,0.5477]
[1761023960804,1.22676,3864.6,3864.5,0.3372]
[1761023961007,0.90538,3864.4,3864.3,0.5477]
[1761023962004,0.90538,3864.4,3864.3,0.7711]
[1761023962604,0.9241183,3865.6,3865.0,0.5664]
[1761023962804,0.2142,3864.8,3864.7,0.7711]
[1761023963196,0.5356,3864.9,3864.8,0.3372]
[1761023963402,0.4397,3864.9,3864.8,0.7711]
[1761023967708,0.2142,3864.9,3864.8,0.7711]
[1761023968610,0.2142,3864.9,3864.7,0.46564]
[1761023968611,0.68031,3865.0,3864.9,0.7735]
[1761023968806,1.23931,3865.0,3864.9,0.544]
[1761023969003,1.23936,3864.6,3864.5,1.37147884]
[1761023969204,0.91106,3864.6,3864.5,0.906]
[1761023970104,0.46566,3864.6,3864.5,0.906]
[1761023970309,0.91101,3865.1,3865.0,0.9119]
[1761023971307,0.543,3865.5,3865.2,0.3276]
[1761023971505,0.2147,3865.5,3865.4,0.7735]
[1761023971813,1.23925,3865.5,3865.4,0.7735]
[1761023972297,0.46555,3865.5,3865.4,0.7735]
[1761023972501,0.4454,3865.5,3865.4,0.7735]
[1761023972697,0.2147,3865.5,3865.4,0.7735]
[1761023972902,0.46554,3865.6,3865.5,0.9119]
[1761023973413,0.46552,3865.8,3865.7,0.7735]